bitfinex-derivatives/quotes_SOLF0:USTF0_20250603
["timestamp","ask_amount","ask_price","bid_price","bid_amount"]
[1748942321695,6.32672903,159.05,159.02,10.47525594]
[1748942321894,6.32672903,159.05,159.02,16.3425005]
[1748942322101,0.04272903,159.05,159.02,16.3425005]
[1748942323998,0.04272903,159.05,159.03,6.2845]
[1748942324501,0.04272903,159.05,159.03,5.86724456]
[1748942325703,0.04272903,159.05,159.03,5.86984405]
[1748942326002,6.2842,159.04,159.03,5.86984405]
[1748942326505,0.04272903,159.05,159.03,5.86984405]
[1748942326904,6.32672903,159.05,159.03,5.86984405]
[1748942328003,10.51728497,159.05,159.03,5.86984405]
[1748942328503,10.47475594,159.04,159.03,5.86984405]
[1748942329600,10.47475594,159.04,159.01,14.1583384]
[1748942329805,10.47475594,159.04,159.03,5.87515836]
[1748942333208,4.19055594,159.04,159.01,5.92347087]
[1748942333407,4.19055594,159.02,159.01,5.92347087]
[1748942333702,4.19055594,159.02,159.01,5.92469848]
[1748942334115,10.47555594,159.02,159.01,0.04831251]
[1748942335204,6.2862,158.99,158.98,5.87638597]
[1748942335417,4.19055594,158.99,158.97,5.87638597]
[1748942335613,4.19055594,158.98,158.96,5.87638597]
[1748942335811,4.19055594,158.98,158.97,5.87638597]
[1748942336115,10.47735594,158.98,158.96,5.87638597]
[1748942336313,6.2868,158.98,158.96,5.87638597]
[1748942336520,10.47735594,158.98,158.96,5.87638597]
[1748942337217,10.47735594,158.98,158.95,0.04162171]
[1748942337421,10.47735594,158.98,158.95,5.91288381]
[1748942339211,4.19055594,158.98,158.95,5.91288381]
[1748942339916,0.04380525,158.99,158.95,12.20068381]
[1748942340117,0.04380525,158.99,158.96,4.19055594]
[1748942340618,4.23436119,158.99,158.95,10.10343975]
[1748942340823,4.23436119,158.99,158.95,10.09461798]
[1748942341721,10.52076119,158.99,158.95,16.38211798]
[1748942342925,4.23436119,158.99,158.95,16.38211798]
[1748942343126,0.04380525,158.99,158.98,4.19055594]
[1748942343718,0.04380525,158.99,158.98,10.47715594]
[1748942344626,0.04380525,158.99,158.98,4.19055594]
[1748942345618,0.04380525,158.99,158.97,4.19055594]
[1748942346023,4.23436119,158.99,158.96,5.8543651]
[1748942346330,4.23436119,158.99,158.95,5.89598681]
[1748942346530,4.23436119,158.99,158.95,10.08654275]
[1748942346731,4.19055594,158.98,158.95,4.23217765]
[1748942347230,6.2866,158.98,158.95,0.04162171]
[1748942347429,0.04380525,158.99,158.95,0.04162171]
[1748942347826,6.2873,158.97,158.95,0.04162171]
[1748942349027,6.2867,158.98,158.95,0.04162171]
[1748942351530,6.33010525,158.99,158.95,0.04162171]
[1748942352330,6.2866,158.98,158.95,0.04162171]
[1748942354037,6.2871,158.97,158.95,0.04162171]
[1748942354238,0.04380525,158.99,158.95,0.04162171]
[1748942354830,6.2872,158.97,158.95,0.04162171]
[1748942357139,6.2874,158.96,158.95,0.04162171]
[1748942358740,6.2874,158.96,158.91,5.84561248]
[1748942358741,6.55445219,158.96,158.91,5.84561248]
[1748942358940,6.55445219,158.96,158.89,49.69016467]
[1748942359245,6.2885,158.94,158.89,49.68719577]
[1748942359738,0.04163987,158.93,158.9,0.0459487]
[1748942359945,6.33033987,158.93,158.9,0.0459487]
[1748942360644,0.04163987,158.93,158.9,0.0459487]
[1748942361234,6.33033987,158.93,158.9,0.0459487]
[1748942363944,0.04163987,158.93,158.9,0.0459487]
[1748942364141,0.04163987,158.93,158.91,6.55445219]
[1748942364341,33.1675,158.99,158.92,5.8389377]
[1748942364546,39.4539,158.99,158.94,12.84225219]
[1748942365239,0.04269647,158.98,158.95,0.04430802]
[1748942365445,6.32929647,158.98,158.95,0.04430802]
[1748942366950,0.04269647,158.98,158.95,0.04430802]
[1748942370046,6.287,158.97,158.95,0.04430802]
[1748942374948,6.2874,158.96,158.95,0.04430802]
[1748942383653,6.2885,158.93,158.92,5.86031987]
[1748942384059,37.55445219,158.95,158.91,5.86031987]
[1748942384259,6.2889,158.92,158.9,5.86031987]
[1748942384557,37.55445219,158.95,158.9,5.86031987]
[1748942384757,0.04055318,158.94,158.91,0.04733901]
[1748942385254,0.04055318,158.94,158.91,12.46211107]
[1748942385561,0.04055318,158.94,158.92,12.14901987]
[1748942385960,0.04055318,158.94,158.93,5.86031987]
[1748942386258,0.04055318,158.94,158.93,18.70327206]
[1748942387056,0.04055318,158.94,158.93,12.41477206]
[1748942388561,0.04055318,158.94,158.93,5.86031987]
[1748942390262,0.04055318,158.94,158.93,5.85816485]
[1748942391264,6.32845318,158.94,158.93,5.85816485]
[1748942392753,0.04055318,158.94,158.93,5.85816485]
[1748942394066,0.04055318,158.94,158.91,14.1609649]
[1748942394260,0.04055318,158.94,158.93,5.86103327]
[1748942394759,6.32845318,158.94,158.93,5.86103327]
[1748942395367,0.04055318,158.94,158.93,5.86103327]
[1748942399467,6.32845318,158.94,158.93,5.86103327]
[1748942400666,0.04055318,158.94,158.93,5.86103327]
[1748942401058,0.04055318,158.94,158.91,7.8719649]
[1748942401261,0.04055318,158.94,158.93,5.86000556]
[1748942402865,6.32845318,158.94,158.93,5.86000556]
[1748942404269,0.04055318,158.94,158.93,5.86000556]
[1748942404463,0.04055318,158.94,158.93,5.8596719]
[1748942405570,2.0504,159.0,158.93,10.05533438]
[1748942405875,31.0,159.01,158.98,4.19566248]
[1748942406073,6.2858,159.0,158.98,4.19566248]
[1748942407173,35.24021905,159.01,158.97,5.90087357]
[1748942407174,6.2859,158.99,158.97,5.90087357]
[1748942407668,31.04455657,159.01,158.97,5.90087357]
[1748942407669,6.2863,158.98,158.97,5.90087357]
[1748942408374,6.2863,158.98,158.97,0.04120167]
[1748942408680,6.2863,158.98,158.97,5.89474502]
[1748942409275,6.2863,158.98,158.97,0.04120167]
[1748942427195,10.48118548,158.98,158.97,0.04120167]
[1748942436394,6.2875,158.95,158.94,5.83872984]
[1748942436599,4.19488548,158.95,158.92,5.83872984]
[1748942437395,0.04228898,158.95,158.92,10.08186099]
[1748942439304,0.04228898,158.95,158.92,16.37046099]
[1748942439703,30.98,159.0,158.94,4.19488548]
[1748942440000,119.76170662,159.03,158.99,4.19488548]
[1748942440598,119.76170662,159.03,159.0,4.19488548]
[1748942440804,126.08594184,159.03,159.0,4.23824187]
[1748942441303,121.89105636,159.03,159.0,0.04335639]
[1748942441692,115.60645636,159.03,159.0,0.04335639]
[1748942441908,0.03963522,159.03,159.0,6.59231259]
[1748942442504,0.03963522,159.03,159.01,6.2849]
[1748942443204,0.03963522,159.03,159.02,6.2848]
[1748942444608,0.03963522,159.03,159.01,6.2852]
[1748942447313,6.32403522,159.03,159.0,37.57231259]
[1748942447503,0.03963522,159.03,159.0,37.57231259]
[1748942447908,0.03963522,159.03,159.0,43.85761259]
[1748942449908,0.03963522,159.03,159.02,12.8337562]
[1748942450110,30.98,159.09,159.02,12.36955558]
[1748942450317,30.98,159.09,159.04,6.5489562]
[1748942451015,6.32785018,159.08,159.05,6.3279159]
[1748942451213,0.04545018,159.08,159.05,0.0444159]
[1748942454017,6.2832,159.06,159.05,0.0444159]
[1748942460320,12.8321562,159.06,159.05,0.0444159]
[1748942460514,12.8321562,159.06,158.98,5.80171652]
[1748942460515,6.5489562,159.02,158.96,5.80171652]
[1748942460720,6.5489562,159.0,158.94,30.96]
[1748942461216,6.5489562,159.0,158.92,12.35067272]
[1748942461429,6.5489562,158.96,158.94,0.04076002]
[1748942461811,6.2876,158.95,158.94,0.04076002]
[1748942463823,6.2889,158.92,158.88,30.96]
[1748942464013,6.2889,158.92,158.87,81.39700051]
[1748942464815,0.040667,158.91,158.88,0.04046936]
[1748942465119,0.040667,158.91,158.88,6.33076936]
[1748942465323,0.040667,158.91,158.89,6.5489562]
[1748942466121,0.040667,158.91,158.9,6.2896]
[1748942470229,0.040667,158.91,158.89,12.8389562]
[1748942470431,0.040667,158.91,158.88,0.04046936]
[1748942470617,6.2901,158.89,158.88,0.04046936]
[1748942470823,37.5289562,158.89,158.82,38.83171795]
[1748942471022,37.5289562,158.89,158.82,36.78731795]
[1748942471226,37.5289562,158.89,158.82,30.98]
[1748942471429,37.5289562,158.89,158.81,6.293]
[1748942471430,6.5489562,158.87,158.81,6.293]
[1748942471627,12.8399562,158.87,158.81,6.293]
[1748942471928,0.04604612,158.86,158.82,0.04832241]
[1748942472134,0.04604612,158.86,158.82,6.34102241]
[1748942472824,6.5489562,158.85,158.82,0.04832241]
[1748942473020,37.5289562,158.85,158.82,0.04832241]
[1748942473217,30.98,158.85,158.82,0.04832241]
[1748942475224,37.2717,158.85,158.82,0.04832241]
[1748942475728,6.5489562,158.84,158.82,0.04832241]
[1748942477818,12.8409562,158.84,158.82,0.04832241]
[1748942478330,6.2924,158.83,158.82,0.04832241]
[1748942478624,6.5489562,158.84,158.82,0.04832241]
[1748942479029,12.8410562,158.84,158.82,0.04832241]
[1748942479226,6.5489562,158.84,158.82,0.04832241]
[1748942479635,12.8411562,158.84,158.82,0.04832241]
[1748942479932,33.0692,158.85,158.82,0.04832241]
[1748942480131,30.98,158.85,158.82,0.04832241]
[1748942480926,0.04604612,158.86,158.82,0.04832241]
[1748942481130,0.04604612,158.86,158.83,6.2922]
[1748942481328,0.04604612,158.86,158.82,0.04832241]
[1748942483137,6.2919,158.85,158.82,0.04832241]
[1748942484028,6.33744612,158.86,158.82,0.04832241]
[1748942484441,6.33744612,158.86,158.82,6.34102241]
[1748942484628,0.04604612,158.86,158.82,0.04832241]
[1748942484829,0.04604612,158.86,158.83,6.2922]
[1748942485025,0.04604612,158.86,158.82,0.04832241]
[1748942485224,0.04604612,158.86,158.82,6.59727861]
[1748942485427,0.04604612,158.86,158.84,6.5489562]
[1748942487131,0.04604612,158.86,158.85,6.2917]
[1748942487328,31.0,158.91,158.84,6.5489562]
[1748942487535,37.2895,158.91,158.87,6.5489562]
[1748942487939,31.0,158.91,158.87,6.5489562]
[1748942488336,31.04805819,158.91,158.87,0.04591006]
[1748942488641,37.59701439,158.91,158.87,0.04591006]
[1748942490338,6.2898,158.9,158.87,0.04591006]
[1748942490542,31.04805819,158.91,158.87,0.04591006]
[1748942491033,37.33735819,158.91,158.87,6.33641006]
[1748942491439,37.33735819,158.91,158.87,0.04591006]
[1748942492336,37.33735819,158.91,158.88,6.2904]
[1748942492545,37.33735819,158.91,158.87,6.59486626]
[1748942492936,37.33735819,158.91,158.87,12.88536626]
[1748942493442,37.33735819,158.91,158.87,6.59486626]
[1748942493846,31.04805819,158.91,158.87,6.59486626]
[1748942494234,31.04805819,158.91,158.89,6.5489562]
[1748942494444,0.04805819,158.91,158.89,6.5489562]
[1748942494946,0.04805819,158.91,158.87,0.04591006]
[1748942495147,0.04805819,158.91,158.88,6.5489562]
[1748942495447,0.04805819,158.91,158.89,6.29]
[1748942497233,0.04805819,158.91,158.87,0.04591006]
[1748942497234,0.04805819,158.91,158.88,6.2903]
[1748942501045,6.33735819,158.91,158.88,6.2903]
[1748942501848,0.04805819,158.91,158.87,0.04591006]
[1748942502344,6.59701439,158.91,158.87,0.04591006]
[1748942503040,6.2903,158.89,158.87,0.04591006]
[1748942503347,0.04805819,158.91,158.87,0.04591006]
[1748942503746,6.33755819,158.91,158.88,6.2902]
[1748942504848,6.2897,158.9,158.87,6.33661006]
[1748942506952,6.33745819,158.91,158.88,6.2902]
[1748942508456,6.2898,158.9,158.87,6.33671006]
[1748942508657,0.04805819,158.91,158.87,0.04591006]
[1748942510952,6.33755819,158.91,158.87,6.33671006]
[1748942511156,0.04805819,158.91,158.87,6.33671006]
[1748942511454,0.04805819,158.91,158.88,6.2904]
[1748942512453,0.04805819,158.91,158.87,0.04591006]
[1748942513556,0.04805819,158.91,158.87,6.33641006]
[1748942514860,0.04805819,158.91,158.87,0.04591006]
[1748942515561,6.33755819,158.91,158.87,0.04591006]
[1748942518164,6.2897,158.9,158.87,0.04591006]
[1748942520681,0.04805819,158.91,158.87,0.04591006]
[1748942520882,31.02,158.9,158.87,0.04591006]
[1748942521078,37.5689562,158.9,158.87,0.04591006]
[1748942521976,6.2901,158.89,158.87,0.04591006]
[1748942524484,6.2905,158.88,158.87,0.04591006]
[1748942524787,133.7794562,158.88,158.87,0.04591006]
[1748942525187,6.5489562,158.86,158.82,5.84864512]
[1748942525382,37.5689562,158.86,158.81,5.84864512]
[1748942525778,6.2921,158.84,158.81,5.84864512]
[1748942526084,6.5906056,158.84,158.81,5.89655967]
[1748942526285,6.5906056,158.84,158.81,0.04791455]
[1748942526693,0.0416494,158.84,158.81,5.89655967]
[1748942526982,0.0416494,158.84,158.82,5.84864512]
[1748942527180,0.0416494,158.84,158.82,12.14124512]
[1748942528183,0.0416494,158.84,158.82,5.84864512]
[1748942528984,0.0416494,158.84,158.81,6.34101455]
[1748942529886,0.0416494,158.84,158.82,12.14485463]
[1748942530087,0.0416494,158.84,158.82,5.85205463]
[1748942530284,0.0416494,158.84,158.81,5.89996918]
[1748942530878,6.2927,158.83,158.81,0.04791455]
[1748942531284,0.0416494,158.84,158.81,0.04791455]
[1748942531491,6.2929,158.82,158.81,0.04791455]
[1748942532485,0.0416494,158.84,158.81,0.04791455]
[1748942532986,0.0416494,158.84,158.81,6.34101455]
[1748942533386,0.0416494,158.84,158.81,0.04791455]
[1748942533584,0.0416494,158.84,158.82,6.2925]
[1748942534191,0.0416494,158.84,158.81,0.04791455]
[1748942534586,0.0416494,158.84,158.81,5.89536281]
[1748942534788,0.0416494,158.84,158.82,6.2926]
[1748942535793,0.0416494,158.84,158.82,5.84744826]
[1748942536691,0.0416494,158.84,158.82,12.13428027]
[1748942539694,0.0416494,158.84,158.82,5.84148027]
[1748942540281,0.0416494,158.84,158.82,12.13428027]
[1748942540482,0.0416494,158.84,158.82,6.2928]
[1748942541999,0.0416494,158.84,158.82,12.13417561]
[1748942542889,0.0416494,158.84,158.82,6.2928]
[1748942544690,0.0416494,158.84,158.82,12.13656298]
[1748942545084,0.0416494,158.84,158.82,5.84376298]
[1748942545990,0.0416494,158.84,158.82,12.13656298]
[1748942547897,0.0416494,158.84,158.82,5.84376298]
[1748942548093,0.0416494,158.84,158.81,0.04791455]
[1748942549096,6.3338494,158.84,158.81,0.04791455]
[1748942552389,6.3338494,158.84,158.81,6.34111455]
[1748942552602,6.3338494,158.84,158.81,12.18818534]
[1748942552903,6.3338494,158.84,158.81,6.34111455]
[1748942553194,6.3338494,158.84,158.81,0.04791455]
[1748942554203,0.0416494,158.84,158.81,0.04791455]
[1748942554405,0.0416494,158.84,158.82,5.84707079]
[1748942554801,31.04,158.88,158.83,6.5489562]
[1748942554998,31.04,158.88,158.84,5.84707079]
[1748942555302,31.04,158.91,158.84,5.84707079]
[1748942555498,6.5489562,158.9,158.84,5.84707079]
[1748942555807,0.04482308,158.89,158.85,0.04746568]
[1748942555992,6.291,158.87,158.85,0.04746568]
[1748942561409,6.2907,158.88,158.85,0.04746568]
[1748942563203,6.291,158.87,158.85,0.04746568]
[1748942565810,6.2913,158.86,158.85,0.04746568]
[1748942568504,6.2924,158.84,158.82,5.8455259]
[1748942569106,6.2919,158.85,158.82,5.8455259]
[1748942569506,6.33269716,158.85,158.82,5.88718847]
[1748942571013,0.04079716,158.85,158.83,5.8455259]
[1748942571311,0.04079716,158.85,158.84,5.8455259]
[1748942571517,0.04079716,158.85,158.84,12.1376259]
[1748942571814,0.04079716,158.85,158.84,12.15152461]
[1748942572917,0.04079716,158.85,158.84,6.2921]
[1748942573114,0.04079716,158.85,158.84,12.15152461]
[1748942575621,0.04079716,158.85,158.84,5.86000365]
[1748942575808,0.04079716,158.85,158.82,7.84440208]
[1748942576009,0.04079716,158.85,158.75,18.25306546]
[1748942576220,6.5489562,158.84,158.76,11.70410926]
[1748942576417,6.2928,158.83,158.76,11.70410926]
[1748942576612,6.5489562,158.84,158.79,6.2938]
[1748942577024,0.04397173,158.83,158.8,0.04225655]
[1748942577616,6.2929,158.82,158.8,0.04225655]
[1748942578216,6.33647173,158.83,158.8,0.04225655]
[1748942580710,6.2929,158.82,158.8,0.04225655]
[1748942581317,0.04397173,158.83,158.8,0.04225655]
[1748942581722,31.28397173,158.83,158.8,0.04225655]
[1748942584118,6.2929,158.82,158.8,0.04225655]
[1748942588722,31.28397173,158.83,158.8,0.04225655]
[1748942589118,0.04397173,158.83,158.8,0.04225655]
[1748942589422,0.04397173,158.83,158.82,6.2929]
[1748942596041,0.04397173,158.83,158.8,0.04225655]
[1748942596719,0.04397173,158.83,158.8,6.33575655]
[1748942597525,0.04397173,158.83,158.81,6.2932]
[1748942597935,0.04397173,158.83,158.8,0.04225655]
[1748942598234,0.04397173,158.83,158.8,6.33565655]
[1748942601132,6.33667173,158.83,158.8,6.33565655]
[1748942602334,0.04397173,158.83,158.81,6.2933]
[1748942602536,0.04397173,158.83,158.8,0.04225655]
[1748942603037,0.04397173,158.83,158.81,6.2931]
[1748942603736,0.04397173,158.83,158.82,6.2929]
[1748942607842,37.7889562,158.89,158.82,7.81578477]
[1748942607843,31.24,158.89,158.82,7.81578477]
[1748942608041,37.7889562,158.89,158.82,7.81578477]
[1748942608340,37.7889562,158.89,158.84,6.2918]
[1748942608740,6.33081654,158.88,158.85,0.0466251]
[1748942608938,6.33081654,158.88,158.85,6.3383251]
[1748942609539,0.04021654,158.88,158.85,0.0466251]
[1748942610044,0.04021654,158.88,158.86,6.2913]
[1748942613441,0.04021654,158.88,158.87,6.2909]
[1748942613843,0.04021654,158.88,158.85,0.0466251]
[1748942614243,0.04021654,158.88,158.86,6.2913]
[1748942614539,0.04021654,158.88,158.85,0.0466251]
[1748942614739,0.04021654,158.88,158.87,6.2909]
[1748942615148,0.04021654,158.88,158.86,6.2912]
[1748942617349,6.33081654,158.88,158.85,6.3381251]
[1748942618452,0.04021654,158.88,158.85,6.3381251]
[1748942619352,6.33091654,158.88,158.85,6.3381251]
[1748942621450,0.04021654,158.88,158.85,6.3381251]
[1748942622751,0.04021654,158.88,158.86,6.2912]
[1748942623853,6.33071654,158.88,158.85,6.3381251]
[1748942624455,0.04021654,158.88,158.85,6.3381251]
[1748942624756,0.04021654,158.88,158.86,6.2912]
[1748942625055,0.04021654,158.88,158.85,0.0466251]
[1748942625360,0.04021654,158.88,158.85,6.3381251]
[1748942625752,0.04021654,158.88,158.85,0.0466251]
[1748942626152,0.04021654,158.88,158.86,6.2912]
[1748942627759,0.04021654,158.88,158.85,0.0466251]
[1748942627760,0.04021654,158.88,158.87,6.2909]
[1748942628556,0.04021654,158.88,158.86,6.2911]
[1748942633760,0.04021654,158.88,158.87,6.2909]
[1748942635465,0.04021654,158.88,158.86,6.2912]
[1748942635965,4.2394633,158.88,158.85,5.90793481]
[1748942636158,4.2394633,158.88,158.85,0.0466251]
[1748942636666,6.2913,158.87,158.85,0.0466251]
[1748942637269,10.5302633,158.88,158.85,6.3381251]
[1748942637468,10.5302633,158.88,158.85,12.20079736]
[1748942638262,10.5302633,158.88,158.85,0.0466251]
[1748942639562,10.5302633,158.88,158.85,5.90929736]
[1748942639766,6.2912,158.87,158.85,0.0466251]
[1748942640360,6.2912,158.87,158.85,5.90929736]
[1748942640565,6.2912,158.87,158.85,12.20257742]
[1748942640765,10.5300633,158.88,158.85,12.20257742]
[1748942641069,0.04021654,158.88,158.85,10.11022418]
[1748942641671,0.04021654,158.88,158.86,6.291]
[1748942642367,6.33071654,158.88,158.86,6.291]
[1748942643273,6.33071654,158.88,158.85,16.40378307]
[1748942644073,6.33071654,158.88,158.86,6.2912]
[1748942644472,0.04021654,158.88,158.86,6.2912]
[1748942645168,0.04021654,158.88,158.86,12.15751121]
[1748942645976,0.04021654,158.88,158.87,6.2909]
[1748942646575,0.04021654,158.88,158.86,12.15751121]
[1748942646868,10.5302633,158.88,158.86,5.87337819]
[1748942647173,4.2394633,158.88,158.86,5.87337819]
[1748942647567,0.04021654,158.88,158.86,5.87337819]
[1748942648572,0.04021654,158.88,158.86,12.16447819]
[1748942650275,0.04021654,158.88,158.87,6.2909]
[1748942650464,0.04021654,158.88,158.87,12.16427819]
[1748942650668,0.04021654,158.88,158.87,16.36649627]
[1748942651278,0.04021654,158.88,158.87,10.49014676]
[1748942664789,1.654e-05,158.88,158.87,10.49014676]
[1748942665386,1.654e-05,158.88,158.87,18.31943741]
[1748942665681,1.654e-05,158.88,158.87,10.49014676]
[1748942666497,1.654e-05,158.88,158.87,18.31425864]
[1748942667490,1.654e-05,158.88,158.87,10.49014676]
[1748942687615,1.654e-05,158.88,158.87,6.2909]
[1748942691806,1.654e-05,158.88,158.87,10.49014676]
[1748942692612,1.654e-05,158.88,158.87,18.31425864]
[1748942695710,1.654e-05,158.88,158.87,10.49014676]
[1748942704220,31.0,158.96,158.93,6.2886]
[1748942704526,35.19924676,158.96,158.93,6.2886]
[1748942705118,10.5116,158.95,158.92,16.4060308]
[1748942707023,6.2882,158.94,158.92,16.4060308]
[1748942707734,6.2882,158.94,158.92,12.20678404]
[1748942708329,6.2882,158.94,158.92,12.20088287]
[1748942708528,6.2882,158.94,158.92,5.91208287]
[1748942708725,6.2882,158.94,158.92,0.04530032]
[1748942708726,6.2886,158.93,158.92,0.04530032]
[1748942713734,10.48784676,158.93,158.92,0.04530032]
[1748942713933,10.48784676,158.93,158.92,0.01075477]
[1748942716448,6.2883,158.94,158.92,0.01075477]
[1748942716850,4.2238,158.95,158.93,4.19924676]
[1748942717039,4.2238,158.95,158.93,10.48754676]
[1748942718050,4.2238,158.95,158.93,6.2883]
[1748942718450,10.5117,158.95,158.92,10.49880153]
[1748942719747,10.5117,158.95,158.93,6.2885]
[1748942721354,10.5117,158.95,158.92,10.49880153]
[1748942721952,6.2883,158.94,158.92,4.21000153]
[1748942723652,10.5117,158.95,158.92,10.49890153]
[1748942727649,6.2882,158.94,158.92,10.49890153]
[1748942728350,6.2886,158.93,158.92,0.01075477]
[1748942736957,4.19924676,158.94,158.92,0.01075477]
[1748942737957,10.48764676,158.94,158.92,0.01075477]
[1748942738163,4.19924676,158.94,158.92,0.01075477]
[1748942739050,6.2886,158.93,158.92,0.01075477]
[1748942739556,10.48784676,158.93,158.92,0.01075477]
[1748942741058,4.19924676,158.93,158.88,5.87087824]
[1748942741253,4.19924676,158.89,158.87,5.87087824]
[1748942741654,4.19924676,158.89,158.87,12.16177824]
[1748942741855,4.19924676,158.89,158.87,5.87087824]
[1748942742158,6.2909,158.87,158.86,5.91681773]
[1748942742356,6.2909,158.87,158.86,0.04593949]
[1748942743558,10.49014676,158.87,158.85,5.87087824]
[1748942743756,4.19924676,158.86,158.84,5.87087824]
[1748942744459,4.19924676,158.86,158.84,12.16297824]
[1748942746363,4.19924676,158.86,158.84,6.2921]
[1748942746962,0.04237189,158.87,158.85,6.2916]
[1748942747166,0.04237189,158.87,158.84,10.070125]
[1748942747563,0.04237189,158.87,158.84,10.05938068]
[1748942747957,0.04237189,158.87,158.85,4.19924676]
[1748942748159,0.04237189,158.87,158.86,6.2913]
[1748942753670,0.04237189,158.87,158.86,10.49054676]
[1748942761776,0.04237189,158.87,158.86,4.19924676]
[1748942763079,0.04237189,158.87,158.86,10.49054676]
[1748942767681,0.04237189,158.87,158.85,12.13578586]
[1748942767981,0.04237189,158.87,158.85,10.04343262]
[1748942768379,4.24161865,158.87,158.84,5.84418586]
[1748942768683,4.24161865,158.87,158.83,10.08973358]
[1748942769880,4.24161865,158.87,158.83,10.09517392]
[1748942770383,6.2918,158.85,158.83,10.09517392]
[1748942771784,6.2921,158.84,158.83,5.89592716]
[1748942771984,10.49134676,158.84,158.83,0.04630096]
[1748942772285,4.19924676,158.85,158.83,0.04630096]
[1748942774386,10.49134676,158.85,158.83,0.04630096]
[1748942776783,6.2921,158.84,158.83,0.04630096]
[1748942777591,4.19924676,158.85,158.83,0.04630096]
[1748942778586,6.2921,158.84,158.83,0.04630096]
[1748942778791,10.49134676,158.84,158.83,0.04630096]
[1748942781089,10.49134676,158.84,158.83,0.01105377]
[1748942784193,4.19924676,158.84,158.83,0.01105377]
[1748942785097,10.49134676,158.84,158.83,0.01105377]
[1748942792495,6.2921,158.84,158.83,0.01105377]
[1748942792690,10.49134676,158.84,158.83,0.01105377]
[1748942794303,4.19924676,158.84,158.83,0.01105377]
[1748942794497,10.49104676,158.85,158.83,0.01105377]
[1748942794797,4.19924676,158.85,158.83,0.01105377]
[1748942794996,6.2921,158.84,158.83,0.01105377]
[1748942795999,10.49134676,158.84,158.83,0.01105377]
[1748942799611,4.19924676,158.84,158.83,0.01105377]
[1748942799794,2.0915,158.86,158.83,0.01105377]
[1748942799995,6.29074676,158.86,158.83,0.01105377]
[1748942800192,12.58234676,158.86,158.83,10.50280053]
[1748942801800,10.49084676,158.86,158.83,10.50280053]
[1748942802004,4.24161865,158.87,158.84,6.2921]
[1748942802797,10.53291865,158.87,158.83,4.21030053]
[1748942803901,10.53291865,158.87,158.84,6.2919]
[1748942804206,6.2914,158.86,158.83,4.21030053]
[1748942804709,6.2914,158.86,158.83,10.50250053]
[1748942805704,6.2918,158.85,158.83,6.30325377]
[1748942805908,4.19924676,158.86,158.83,0.01105377]
[1748942806207,4.19924676,158.85,158.83,0.01105377]
[1748942807098,6.2921,158.84,158.83,0.01105377]
[1748942807300,4.19924676,158.85,158.83,0.01105377]
[1748942807909,10.49104676,158.85,158.83,0.01105377]
[1748942808208,6.2918,158.85,158.83,0.01105377]
[1748942810912,6.2921,158.84,158.83,0.01105377]
[1748942812717,10.49114676,158.85,158.83,0.01105377]
[1748942813418,6.2921,158.84,158.83,0.01105377]
[1748942815317,10.49094676,158.85,158.83,0.01105377]
[1748942815512,6.2917,158.85,158.83,0.01105377]
[1748942816312,6.2917,158.85,158.83,6.30355377]
[1748942818314,6.2917,158.85,158.83,0.01105377]
[1748942819319,6.2917,158.85,158.83,5.86600023]
[1748942819819,10.49064676,158.86,158.83,12.15850023]
[1748942821711,6.2918,158.85,158.83,12.15850023]
[1748942822820,10.49064676,158.86,158.83,12.16612592]
[1748942823323,6.2917,158.85,158.83,5.87362592]
[1748942825828,6.2921,158.84,158.83,5.87362592]
[1748942826121,4.19924676,158.85,158.83,5.87362592]
[1748942826721,4.19924676,158.85,158.83,5.87621536]
[1748942826930,10.49124676,158.85,158.83,5.87621536]
[1748942829121,10.49124676,158.85,158.83,12.16871536]
[1748942829122,4.19924676,158.85,158.83,12.16871536]
[1748942829320,4.19924676,158.85,158.83,5.87621536]
[1748942829622,10.49114676,158.85,158.83,5.87621536]
[1748942830724,10.49114676,158.85,158.83,5.87841648]
[1748942831022,4.19924676,158.85,158.83,12.17091648]
[1748942831223,0.04237189,158.87,158.83,5.87841648]
[1748942831424,0.04237189,158.87,158.85,10.06660947]
[1748942831616,30.96,158.91,158.86,10.06660947]
[1748942831820,35.15924676,158.94,158.9,4.19924676]
[1748942832019,30.96,158.94,158.91,4.19924676]
[1748942832424,30.96,158.94,158.91,1.04941535]
[1748942832928,30.96,158.94,158.91,1.09189917]
[1748942832929,31.00745304,158.94,158.91,1.09189917]
[1748942833126,6.2888,158.93,158.91,1.09189917]
[1748942833628,31.00745304,158.94,158.91,1.09189917]
[1748942835021,37.29565304,158.94,158.91,7.38099917]
[1748942836725,37.29565304,158.94,158.91,1.09189917]
[1748942838018,37.29565304,158.94,158.91,0.04248382]
[1748942838019,6.289,158.92,158.91,0.04248382]
[1748942840932,35.2066998,158.94,158.91,0.04248382]
[1748942841429,6.289,158.93,158.91,0.04248382]
[1748942843829,6.289,158.92,158.91,0.04248382]